bitfinex/quotes_SOLUSD_20240703
["timestamp","ask_amount","ask_price","bid_price","bid_amount"]
[1719979369112,34.14,149.96,149.94,6.6691]
[1719979369317,34.14,149.96,149.93,16.6738]
[1719979369318,34.14,149.96,149.93,23.3434]
[1719979369815,34.14,149.96,149.94,6.6692]
[1719979370208,34.14,149.96,149.95,6.6688]
[1719979370610,34.14,149.96,149.93,16.6738]
[1719979370818,34.14,149.96,149.94,6.6689]
[1719979371027,34.14,149.96,149.95,6.6688]
[1719979371527,6.37021293,150.0,149.95,16.6711]
[1719979371810,6.6654,150.03,149.98,6.6674]
[1719979372017,16.66,150.06,149.97,23.3374]
[1719979372018,34.14,150.01,149.97,23.3374]
[1719979372233,34.14,149.98,149.91,0.814467]
[1719979372598,6.668,149.97,149.91,0.814467]
[1719979372812,6.668,149.97,149.92,6.6698]
[1719979373011,40.8076,149.98,149.93,6.6697]
[1719979374716,34.14,149.98,149.94,6.6692]
[1719979375122,34.14,149.98,149.92,16.6749]
[1719979375301,34.14,149.98,149.94,6.669]
[1719979375500,34.14,149.98,149.95,6.6687]
[1719979375812,34.14,149.98,149.94,16.6728]
[1719979376013,34.14,149.98,149.94,23.3418]
[1719979376323,34.14,149.98,149.96,6.6684]
[1719979377214,34.14,149.98,149.97,6.668]
[1719979377604,34.14,149.98,149.96,23.3389]
[1719979377907,16.6728,150.06,149.98,16.6684]
[1719979378227,6.37021293,150.05,150.0,16.6658]
[1719979378427,34.14,150.04,150.0,16.6658]
[1719979378609,34.14,150.04,150.02,6.6656]
[1719979379011,34.14,150.04,150.0,16.6658]
[1719979379012,34.14,150.04,150.01,6.6661]
[1719979379209,6.37021293,150.05,150.0,16.6658]
[1719979379419,6.37021293,150.05,150.02,6.6654]
[1719979379736,34.14,150.06,150.0,16.6658]
[1719979379906,34.14,150.06,150.02,6.6654]
[1719979381031,34.14,150.06,150.0,16.6658]
[1719979381237,34.14,150.03,150.0,23.3321]
[1719979381905,6.6667,150.0,149.95,21.9171]
[1719979382115,34.14,149.99,149.95,6.6685]
[1719979382336,34.14,149.99,149.94,16.6729]
[1719979382634,34.14,149.96,149.91,33.843567]
[1719979382843,34.14,149.96,149.91,40.513767]
[1719979383050,34.14,149.96,149.93,6.6694]
[1719979383350,34.14,149.96,149.93,16.6738]
[1719979383627,34.14,149.96,149.94,6.6693]
[1719979383927,26.6692,149.95,149.91,0.814467]
[1719979384237,34.14,149.93,149.91,0.814467]
[1719979384731,34.14,149.93,149.91,7.484667]
[1719979385031,34.14,149.93,149.91,7.484967]
[1719979385735,20.0,149.95,149.91,0.814467]
[1719979386431,35.9331,149.96,149.91,0.814467]
[1719979386607,6.6702,149.92,149.91,0.814467]
[1719979386934,26.6702,149.92,149.91,0.814467]
[1719979387428,33.04041293,149.92,149.91,0.814467]
[1719979388129,6.6733,149.85,149.77,33.384]
[1719979388333,6.6733,149.85,149.78,23.3672]
[1719979388511,26.6733,149.85,149.79,6.6757]
[1719979389233,46.7133,149.85,149.76,0.814467]
[1719979389420,33.04351293,149.85,149.78,6.6764]
[1719979389624,20.0,149.85,149.76,0.814467]
[1719979389936,20.0,149.85,149.82,6.6745]
[1719979390429,20.0,149.85,149.81,16.6871]
[1719979390635,6.6719,149.89,149.81,16.6871]
[1719979390821,26.672,149.88,149.83,6.6741]
[1719979391139,6.37021293,149.89,149.86,6.6727]
[1719979391311,6.37021293,149.89,149.86,16.6822]
[1719979391519,6.37021293,149.89,149.87,6.6723]
[1719979391822,13.04181293,149.89,149.84,6.71314503]
[1719979392542,6.37021293,149.89,149.85,6.6732]
[1719979393614,6.37021293,149.89,149.86,6.6726]
[1719979394130,7.34135384,149.92,149.87,6.6721]
[1719979394432,20.0,149.91,149.85,16.6823]
[1719979394817,26.37021293,149.91,149.85,16.6823]
[1719979395405,33.04091293,149.91,149.85,23.3552]
[1719979395635,33.04091293,149.91,149.85,16.6823]
[1719979396134,33.04091293,149.91,149.86,6.6725]
[1719979396433,26.37021293,149.91,149.87,6.6723]
[1719979396631,26.37021293,149.91,149.87,16.6802]
[1719979396822,26.37021293,149.91,149.84,0.03954503]
[1719979397017,6.37021293,149.9,149.84,0.03954503]
[1719979397235,6.6725,149.87,149.84,0.03954503]
[1719979398469,6.6721,149.88,149.84,0.03954503]
[1719979399112,6.6716,149.89,149.84,6.71324503]
[1719979399537,20.0,149.88,149.84,0.03954503]
[1719979400015,20.0,149.89,149.84,0.03954503]
[1719979400620,26.6718,149.89,149.84,6.71324503]
[1719979401225,20.0,149.89,149.85,6.6732]
[1719979401528,26.6716,149.89,149.84,6.71284503]
[1719979401918,6.6721,149.88,149.84,0.03954503]
[1719979402428,20.0,149.89,149.84,0.03954503]
[1719979402737,20.0,149.89,149.86,6.6728]
[1719979402925,20.0,149.89,149.85,6.6732]
[1719979403125,26.6716,149.89,149.84,6.71314503]
[1719979403315,6.672,149.88,149.84,0.03954503]
[1719979403515,6.6724,149.87,149.84,0.03954503]
[1719979404037,6.6721,149.88,149.84,0.03954503]
[1719979405334,6.6733,149.85,149.84,0.03954503]
[1719979405812,56.7133,149.85,149.8,16.6884]
[1719979406017,30.04,149.81,149.77,23.3686]
[1719979406935,30.04,149.78,149.77,23.3686]
[1719979407840,20.0,149.84,149.81,6.6748]
[1719979408633,20.0,149.84,149.79,16.6891]
[1719979408815,20.0,149.84,149.8,6.6754]
[1719979409629,6.37021293,149.85,149.78,100.0]
[1719979409823,33.8,149.87,149.83,23.3592]
[1719979410143,33.8,149.87,149.83,16.6851]
[1719979410315,40.4728,149.87,149.81,6.6749]
[1719979410821,6.6733,149.85,149.8,39.1708]
[1719979411019,40.4727,149.87,149.82,6.6745]
[1719979411522,33.8,149.87,149.83,6.6741]
[1719979412334,40.4724,149.87,149.82,23.3607]
[1719979413221,33.8,149.87,149.8,6.6754]
[1719979413460,6.6737,149.84,149.79,16.6896]
[1719979413743,6.6737,149.84,149.79,23.3653]
[1719979414443,6.6734,149.85,149.8,6.6755]
[1719979415031,6.6738,149.84,149.79,23.3655]
[1719979415225,6.6764,149.78,149.76,0.814467]
[1719979415446,26.6769,149.77,149.76,0.814467]
[1719979416639,20.0,149.77,149.76,0.814467]
[1719979416818,6.37021293,149.79,149.76,0.814467]
[1719979417024,13.04621293,149.79,149.76,0.814467]
[1719979419247,33.8,149.8,149.76,0.814467]
[1719979419419,33.8,149.8,149.77,6.6768]
[1719979419624,20.74727788,149.83,149.77,6.6768]
[1719979420037,20.74727788,149.83,149.78,6.6763]
[1719979420343,20.74727788,149.83,149.77,6.6768]
[1719979420962,20.0,149.82,149.77,6.6768]
[1719979421244,26.6747,149.82,149.77,6.6768]
[1719979421541,26.37021293,149.82,149.76,0.814467]
[1719979422948,6.6767,149.78,149.76,0.814467]
[1719979423629,6.676,149.79,149.76,0.814467]
[1719979423823,26.37021293,149.82,149.76,0.814467]
[1719979424144,6.6756,149.8,149.76,0.814467]
[1719979424632,6.676,149.79,149.76,0.814467]
[1719979425345,6.6768,149.78,149.76,0.814467]
[1719979425554,6.6769,149.77,149.76,0.814467]
[1719979426525,6.6769,149.77,149.67,16.6205]
[1719979426526,6.6785,149.74,149.67,16.6205]
[1719979427020,6.6779,149.75,149.69,6.68]
[1719979427442,6.6779,149.75,149.7,6.6799]
[1719979427646,6.6779,149.75,149.69,6.6803]
[1719979428047,6.6782,149.74,149.69,6.6803]
[1719979428827,6.6778,149.75,149.69,6.6803]
[1719979429859,6.6778,149.75,149.7,6.68]
[1719979430432,6.6774,149.76,149.7,6.68]
[1719979430960,26.37021293,149.77,149.71,16.6984]
[1719979431266,26.37021293,149.77,149.72,6.679]
[1719979431556,26.37021293,149.77,149.73,6.6785]
[1719979432680,33.04731293,149.77,149.72,6.6789]
[1719979432871,26.37021293,149.77,149.73,6.6785]
[1719979433666,33.04721293,149.77,149.72,6.679]
[1719979434052,26.37021293,149.77,149.73,6.6785]
[1719979434861,6.37021293,149.77,149.74,6.6781]
[1719979435060,6.37021293,149.77,149.73,23.3747]
[1719979435562,13.04711293,149.77,149.73,16.6962]
[1719979435760,6.37021293,149.77,149.73,23.3748]
[1719979436065,13.04711293,149.77,149.73,16.6962]
[1719979437661,6.37021293,149.77,149.74,6.6781]
[1719979437963,30.06,149.75,149.74,6.6781]
[1719979438468,30.06,149.75,149.73,16.6962]
[1719979438641,30.06,149.75,149.73,23.3748]
[1719979441244,30.06,149.75,149.73,16.6962]
[1719979441577,30.06,149.75,149.7,16.6995]
[1719979442244,30.06,149.75,149.72,6.679]
[1719979442444,30.06,149.73,149.71,6.6793]
[1719979443266,30.06,149.73,149.72,6.6791]
[1719979443558,6.37021293,149.77,149.72,6.6791]
[1719979443760,30.06,149.77,149.75,6.6776]
[1719979444148,30.06,149.77,149.76,6.6773]
[1719979444360,6.37021293,149.82,149.78,6.6762]
[1719979444760,6.37021293,149.82,149.77,23.368]
[1719979444761,30.06,149.79,149.77,23.368]
[1719979445061,30.06,149.79,149.78,6.6764]
[1719979445476,30.06,149.79,149.77,16.6912]
[1719979445767,30.06,149.8,149.76,6.6772]
[1719979445948,30.06,149.77,149.76,6.6772]
[1719979446155,30.06,149.77,149.74,32.4034]
[1719979446355,30.06,149.77,149.75,6.6773]
[1719979446563,30.06,149.77,149.74,39.0815]
[1719979446950,30.06,149.77,149.76,6.6773]
[1719979450577,30.06,149.78,149.77,6.6765]
[1719979451865,30.06,149.78,149.76,23.3698]
[1719979452259,30.06,149.78,149.76,16.6926]
[1719979452961,30.06,149.78,149.77,6.6769]
[1719979455270,30.06,149.78,149.76,23.3698]
[1719979456161,30.06,149.78,149.73,6.6785]
[1719979456162,36.7364,149.78,149.73,6.6785]
[1719979456392,30.06,149.75,149.73,6.6785]
[1719979456675,6.37021293,149.78,149.74,16.6949]
[1719979456881,30.06,149.75,149.74,23.3731]
[1719979457860,6.37021293,149.78,149.75,6.6775]
[1719979458056,30.06,149.76,149.75,6.6775]
[1719979459873,30.06,149.76,149.74,23.373]
[1719979460087,30.06,149.76,149.74,16.6949]
[1719979460295,30.06,149.76,149.75,6.6777]
[1719979460460,30.06,149.76,149.74,23.3728]
[1719979460866,6.37021293,149.78,149.77,16.6922]
[1719979461067,30.06,149.8,149.77,16.6922]
[1719979461289,6.37021293,149.82,149.8,6.6754]
[1719979461492,36.43021293,149.82,149.8,6.6754]
[1719979461789,36.43021293,149.82,149.76,16.6609]
[1719979461967,30.06,149.79,149.76,16.6609]
[1719979462166,30.06,149.79,149.77,6.6768]
[1719979462572,30.06,149.79,149.75,16.6934]
[1719979462789,30.06,149.76,149.75,16.6934]
[1719979462973,30.06,149.76,149.75,23.3711]
[1719979463177,30.06,149.8,149.75,23.3711]
[1719979463483,30.06,149.77,149.76,6.6773]
[1719979464675,6.37021293,149.82,149.79,6.6756]
[1719979464863,30.06,149.8,149.77,23.3681]
[1719979465063,30.06,149.8,149.77,16.6914]
[1719979465383,30.06,149.8,149.76,6.6772]
[1719979466065,30.06,149.77,149.74,16.695]
[1719979467170,30.06,149.77,149.76,6.6773]
[1719979469662,36.43021293,149.8,149.77,6.6765]
[1719979469882,36.43021293,149.8,149.76,16.6925]
[1719979470272,36.7369,149.77,149.69,33.4005]
[1719979470474,36.7369,149.77,149.71,23.3779]
[1719979470475,30.06,149.74,149.71,23.3779]
[1719979470782,30.06,149.74,149.72,6.679]
[1719979472369,30.06,149.74,149.73,6.6786]
[1719979472983,30.06,149.74,149.72,6.6789]
[1719979473985,30.06,149.74,149.71,16.6987]
[1719979474800,30.06,149.74,149.71,23.3779]
[1719979474983,30.06,149.74,149.66,106.2006]
[1719979474984,30.06,149.73,149.68,23.3824]
[1719979475189,30.06,149.7,149.69,6.6804]
[1719979477291,36.43021293,149.74,149.71,6.6795]
[1719979478105,36.43021293,149.74,149.66,6.2006]
[1719979478106,30.06,149.74,149.72,6.6788]
[1719979478272,30.06,149.74,149.73,6.6786]
[1719979478969,30.06,149.74,149.72,16.6971]
[1719979479170,30.06,149.74,149.62,25.0]
[1719979479397,30.06,149.74,149.62,120.0]
[1719979479575,30.06,149.74,149.64,100.0]
[1719979480174,30.06,149.74,149.62,100.0]
[1719979481010,6.679,149.73,149.62,100.0]
[1719979481178,30.06,149.69,149.62,100.0]
[1719979482189,30.06,149.69,149.63,16.062]
[1719979486299,30.06,149.69,149.63,16.062]
[1719979489090,30.06,149.69,149.61,0.814467]
[1719979489594,36.7405,149.69,149.61,0.814467]
[1719979489793,30.06,149.69,149.61,0.814467]
[1719979492304,36.7405,149.69,149.61,0.814467]
[1719979492510,30.06,149.69,149.61,0.814467]
[1719979493200,30.06,149.69,149.62,0.34]
[1719979496282,30.06,149.69,149.61,0.814467]
[1719979496882,6.68,149.7,149.61,0.814467]
[1719979497088,30.06,149.66,149.61,0.814467]
[1719979497304,16.2126,149.65,149.61,0.814467]
[1719979497508,6.2551,149.62,149.61,0.814467]
[1719979497692,12.9386,149.62,149.61,0.814467]
[1719979498004,6.2551,149.62,149.61,0.814467]
[1719979500920,30.06,149.63,149.61,0.814467]
[1719979501298,22.0743,149.72,149.61,0.814467]
[1719979501504,30.06,149.7,149.61,0.814467]
[1719979503807,36.74,149.7,149.61,0.814467]
[1719979504010,42.1143,149.72,149.61,0.814467]
[1719979504011,30.06,149.67,149.61,0.814467]
[1719979506819,30.06,149.64,149.61,0.814467]
[1719979507014,21.4401,149.63,149.61,0.814467]
[1719979507199,28.1233,149.63,149.61,0.814467]
[1719979507400,6.6835,149.62,149.61,0.814467]
[1719979508000,21.4401,149.63,149.61,0.814467]
[1719979508202,30.06,149.62,149.61,0.814467]
[1719979508599,6.6812,149.68,149.61,0.814467]
[1719979508806,20.0,149.67,149.61,0.814467]
[1719979509114,30.06,149.65,149.61,0.814467]
[1719979509321,30.06,149.66,149.61,0.814467]
[1719979509516,5.72756927,149.7,149.61,0.814467]
[1719979509821,30.06,149.7,149.61,0.814467]
[1719979511310,30.06,149.7,149.62,0.34]
[1719979511520,30.06,149.73,149.63,22.6581]
[1719979511718,21.9856,149.74,149.63,22.6581]
[1719979511924,5.72756927,149.75,149.63,22.6581]
[1719979512107,5.72756927,149.75,149.64,0.34]
[1719979512433,5.72756927,149.75,149.63,22.6581]
[1719979512434,6.6786,149.74,149.63,22.6581]
[1719979512602,39.55756927,149.77,149.63,22.6581]
[1719979513009,5.72756927,149.76,149.63,22.6581]
[1719979513211,25.76756927,149.76,149.63,22.6581]
[1719979513415,6.6787,149.73,149.63,22.6581]
[1719979513620,6.6783,149.74,149.63,22.6581]
[1719979514519,5.72756927,149.76,149.63,16.5748]
[1719979514828,6.6791,149.73,149.63,16.5748]
[1719979515004,20.0,149.72,149.63,16.5748]
[1719979515527,6.6801,149.7,149.63,16.5748]
[1719979516321,6.6796,149.71,149.63,16.5748]
[1719979516633,21.6987,149.7,149.61,0.814467]
[1719979518020,41.7387,149.7,149.61,0.814467]
[1719979518610,6.6811,149.68,149.61,0.814467]
[1719979519210,6.6805,149.69,149.61,0.814467]
[1719979520023,20.04,149.66,149.61,0.814467]
[1719979520235,20.04,149.65,149.61,0.814467]
[1719979520531,6.6833,149.63,149.61,0.814467]
[1719979520732,29.1308,149.62,149.61,0.814467]
[1719979521502,22.4473,149.62,149.61,0.814467]
[1719979521700,26.6828,149.64,149.61,0.814467]
[1719979522733,20.0,149.64,149.61,0.814467]
[1719979523548,40.04,149.64,149.61,0.814467]
[1719979523748,6.6835,149.62,149.61,0.814467]
[1719979524049,26.7232,149.63,149.61,0.814467]
[1719979525258,20.0,149.64,149.61,0.814467]
[1719979525551,26.6825,149.65,149.61,0.814467]
[1719979525912,6.6828,149.64,149.61,0.814467]
[1719979526649,26.7228,149.64,149.61,0.814467]
[1719979527220,6.6833,149.63,149.61,0.814467]
[1719979527742,26.7227,149.64,149.61,0.814467]
[1719979530823,20.04,149.64,149.61,0.814467]
[1719979531523,26.7227,149.64,149.61,0.814467]
[1719979531745,30.12,149.62,149.61,0.814467]
[1719979532320,56.8435,149.62,149.61,0.814467]
[1719979532554,56.8435,149.62,149.49,14.727467]
[1719979532734,30.12,149.59,149.49,14.727467]
[1719979533586,30.12,149.56,149.49,14.727467]
[1719979533748,25.76756927,149.64,149.49,14.727467]
[1719979533929,30.12,149.6,149.49,14.727467]
[1719979534245,26.6832,149.63,149.48,6.0788]
[1719979534246,20.0,149.63,149.5,106.2818]
[1719979534424,20.0,149.63,149.5,6.2818]
[1719979534425,30.12,149.63,149.5,6.2818]
[1719979535030,30.12,149.63,149.51,0.34]
[1719979535731,30.12,149.63,149.52,15.8625]
[1719979536632,36.8032,149.63,149.52,15.8625]
[1719979537257,30.12,149.63,149.52,15.8625]
[1719979537949,5.72756927,149.64,149.53,6.0023]
[1719979538153,30.12,149.62,149.53,6.0023]
[1719979540835,36.8037,149.62,149.53,6.0023]
[1719979541939,6.93971122,149.61,149.53,6.0023]
[1719979550948,6.93971122,149.61,149.54,15.1323]
[1719979551265,5.72756927,149.65,149.55,0.34]
[1719979551449,6.93712225,149.64,149.55,0.34]
[1719979551651,6.93712225,149.64,149.55,0.17]
[1719979552662,6.93712225,149.64,149.56,21.4212]
[1719979552856,30.12,149.68,149.57,0.34]
[1719979553057,6.92297224,149.67,149.57,0.34]
[1719979562459,6.92297224,149.67,149.6,115.8238]
[1719979562666,30.12,149.73,149.62,21.9699]
[1719979562870,6.93126132,149.71,149.63,0.17]
[1719979563365,6.93126132,149.71,149.63,0.34]
[1719979564968,6.93126132,149.71,149.64,16.2568]
[1719979565153,5.72756927,149.75,149.65,0.34]
[1719979565473,6.93546873,149.74,149.67,15.5238]
[1719979565656,12.40366927,149.79,149.67,15.5238]
[1719979565858,6.93250644,149.76,149.67,15.5238]
[1719979566257,6.6764,149.78,149.67,15.5238]
[1719979566454,6.93229295,149.76,149.68,0.34]
[1719979566957,6.93229295,149.76,149.7,16.4217]
[1719979567154,6.93229295,149.76,149.69,6.5568]
[1719979567155,26.74758,149.87,149.73,15.0564]
[1719979567454,26.3572,149.88,149.73,15.0564]
[1719979567455,37.05224599,149.86,149.74,100.34]
[1719979567659,37.05224599,149.86,149.75,21.3655]
[1719979567860,37.05224599,149.86,149.76,0.34]
[1719979568366,37.05224599,149.86,149.77,15.4127]
[1719979568367,6.93224599,149.86,149.77,15.4127]
[1719979569768,6.93224599,149.86,149.78,0.34]
[1719979571088,6.93224599,149.86,149.79,6.5974]
[1719979571368,6.03681367,149.92,149.79,6.5974]
[1719979571369,6.6707,149.91,149.8,16.4121]
[1719979571572,6.2626,149.96,149.81,0.34]
[1719979571573,6.92998801,149.89,149.81,0.34]
[1719979571949,6.92998801,149.89,149.81,20.34]
[1719979573364,6.92998801,149.89,149.81,120.34]
[1719979574155,6.92998801,149.89,149.81,20.34]
[1719979574462,6.93140618,149.9,149.81,20.34]
[1719979574973,6.93140618,149.9,149.81,220.34]
[1719979575473,30.12,149.93,149.81,220.34]
[1719979575691,30.12,149.94,149.81,220.34]
[1719979575983,30.12,149.94,149.82,6.4913]
[1719979575984,6.93083981,149.93,149.82,6.4913]
[1719979576159,6.93083981,149.93,149.83,20.34]
[1719979576372,6.93083981,149.93,149.84,116.0742]
[1719979576570,30.12,149.97,149.85,20.34]
[1719979576880,6.93173941,149.95,149.85,20.34]
[1719979577480,6.93173941,149.95,149.85,120.34]
[1719979577667,6.93173941,149.95,149.86,6.0863]
[1719979577979,6.93173941,149.95,149.87,0.34]
[1719979578178,6.93173941,149.95,149.88,15.1712]
[1719979578356,6.93173941,149.95,149.89,0.34]
[1719979579175,6.6683,149.97,149.88,15.1712]
[1719979579374,6.6684,149.96,149.88,15.1712]
[1719979579549,6.93138406,149.94,149.88,15.1712]
[1719979582270,43.72108406,149.94,149.88,15.1712]
[1719979582474,6.93138406,149.94,149.86,6.0863]
[1719979582677,6.93138406,149.94,149.87,16.4582]
[1719979583061,0.814467,149.98,149.87,16.4582]
[1719979583264,6.9738911,149.97,149.87,16.4582]
[1719979583662,6.9738911,149.97,149.88,45.0]
[1719979583859,6.9738911,149.97,149.89,0.17]
[1719979584565,6.9738911,149.97,149.88,45.17]
[1719979584984,6.9738911,149.97,149.89,0.17]
[1719979585159,0.814467,149.98,149.89,0.17]
[1719979586683,0.814467,149.98,149.87,16.4582]
[1719979586989,0.814467,149.98,149.88,20.0]
[1719979588064,0.814467,149.98,149.89,0.34]
[1719979588879,0.814467,149.98,149.9,15.7199]
[1719979589180,0.814467,149.98,149.91,0.34]
[1719979591374,0.814467,149.98,149.92,6.1508]
[1719979591576,0.814467,149.98,149.93,0.17]
[1719979591763,0.814467,149.98,149.93,0.34]
[1719979593488,0.814467,149.98,149.94,16.3255]
[1719979593670,0.814467,149.98,149.95,0.34]
[1719979593871,0.814467,149.98,149.95,20.34]
[1719979594072,0.814467,149.98,149.95,0.34]
[1719979594564,6.97108853,150.06,149.96,100.0]
[1719979594772,6.97108853,150.06,149.97,0.34]
[1719979595175,30.12,150.1,149.99,15.4993]
[1719979595373,30.12,150.1,150.0,0.34]
[1719979595374,37.08849803,150.1,150.0,0.34]
[1719979595976,37.08849803,150.1,149.99,15.4993]
[1719979596173,6.96849803,150.1,149.99,15.4993]
[1719979596387,6.96849803,150.1,150.0,0.34]
[1719979597897,6.96849803,150.1,150.0,100.34]
[1719979598076,6.96849803,150.1,150.0,120.34]
[1719979598272,6.96849803,150.1,150.0,20.34]
[1719979598469,6.96849803,150.1,150.0,120.34]
[1719979599283,6.96849803,150.1,150.0,220.34]
[1719979599485,0.814467,150.13,150.0,220.34]
[1719979599683,6.96738138,150.11,150.0,220.34]
[1719979600197,6.96738138,150.11,150.0,20.34]
[1719979600394,30.12,150.1,149.99,15.4993]
[1719979600701,30.12,150.07,149.99,15.4993]
[1719979600896,6.665,150.04,149.99,15.4993]
[1719979601118,30.12,150.07,149.99,15.4993]
[1719979601119,6.6645,150.05,149.99,15.4993]
[1719979601285,6.664,150.06,149.99,15.4993]
[1719979601792,6.6636,150.07,149.99,15.4993]
[1719979601993,36.7837,150.07,149.99,15.4993]
[1719979602292,30.12,150.04,149.91,15.1585]
[1719979602498,30.12,150.01,149.91,15.1585]
[1719979605201,30.12,150.01,149.92,0.34]
[1719979605395,30.12,150.01,149.91,15.1585]
[1719979606689,6.664,150.06,149.92,0.17]
[1719979606895,30.12,150.03,149.92,0.17]
[1719979607090,30.12,150.03,149.92,200.17]
[1719979607289,30.12,150.03,149.93,0.17]
[1719979607983,30.12,150.04,149.93,0.17]
[1719979608976,20.0,150.03,149.93,0.17]
[1719979609995,6.97179701,150.02,149.92,0.34]
[1719979610606,30.12,150.01,149.91,15.1585]
[1719979612692,30.12,150.01,149.92,0.17]
[1719979612908,30.12,150.01,149.92,0.34]
[1719979613316,6.97179701,150.02,149.92,0.34]
[1719979613610,37.09179701,150.02,149.92,0.34]
[1719979614310,37.09179701,150.02,149.92,100.34]
[1719979614496,37.09179701,150.02,149.92,0.34]
[1719979614900,6.97179701,150.02,149.92,0.34]
[1719979615210,37.09179701,150.02,149.92,0.34]
[1719979615710,37.09179701,150.02,149.92,200.34]
[1719979619511,6.97179701,150.02,149.94,100.0]
[1719979619713,6.97179701,150.02,149.95,20.34]
[1719979619913,30.12,150.06,149.96,6.4846]
[1719979620235,6.97021855,150.05,149.97,0.34]
[1719979622518,6.97021855,150.05,149.98,16.5487]
[1719979623413,6.97021855,150.05,149.99,0.17]
[1719979623605,6.97021855,150.05,149.99,0.34]
[1719979623800,6.97021855,150.05,149.99,0.17]
[1719979624499,37.09021855,150.05,149.98,16.5487]
[1719979625106,37.09021855,150.05,149.99,0.17]
[1719979625312,37.09021855,150.05,149.98,16.5487]
[1719979627196,37.09021855,150.05,149.99,0.34]
[1719979627422,37.09021855,150.05,149.98,16.5487]
[1719979630033,6.97021855,150.05,149.98,16.5487]
[1719979630207,6.97021855,150.05,149.99,0.34]
[1719979631725,6.97021855,150.05,149.98,16.5487]
[1719979633028,13.63481855,150.05,149.98,16.5487]
[1719979633237,13.63481855,150.05,149.94,15.3939]
[1719979633238,30.12,150.01,149.94,15.3939]
[1719979633539,36.7862,150.01,149.94,15.3939]
[1719979633709,30.12,150.01,149.94,15.3939]
[1719979633912,6.9716406,150.0,149.94,15.3939]
[1719979635332,30.12,149.98,149.9,396.9151]
[1719979636025,36.7876,149.98,149.9,396.9151]
[1719979636222,30.12,149.98,149.9,396.9151]
[1719979638031,6.9716406,150.0,149.9,396.9151]
[1719979638226,20.0,149.99,149.91,0.34]
[1719979641006,6.9716406,150.0,149.91,0.34]
[1719979641209,6.9716406,150.0,149.91,20.34]
[1719979641940,6.9716406,150.0,149.91,0.34]
[1719979642110,6.9716406,150.0,149.91,20.34]
[1719979643141,6.9716406,150.0,149.93,16.2233]
[1719979643314,30.12,150.04,149.94,0.34]
[1719979643519,6.96129505,150.04,149.94,0.34]
[1719979643817,37.08129505,150.04,149.94,0.34]
[1719979645030,20.0,150.03,149.94,0.34]
[1719979646345,6.96129505,150.04,149.95,16.6574]
[1719979646641,30.12,150.07,149.96,0.17]
[1719979646832,37.07727345,150.07,149.96,0.34]
[1719979647232,43.74087345,150.07,149.96,0.34]
[1719979647428,6.6645,150.05,149.96,0.34]
[1719979647634,37.07727345,150.07,149.96,0.34]
[1719979647819,43.74107345,150.07,149.96,0.34]
[1719979648014,20.0,150.06,149.96,0.34]
[1719979649931,20.0,150.06,149.96,20.34]
[1719979651733,20.0,150.06,149.97,6.4004]
[1719979651932,20.0,150.06,149.98,0.34]
[1719979655332,20.0,150.06,149.99,16.0454]
[1719979655531,20.0,150.06,150.0,0.34]
[1719979658941,6.95727345,150.07,150.0,0.34]